fUST/lending_fUST_20241030
["ID","MTS","AMOUNT","RATE_DAILY","PERIOD"]
[341027614,1730283043222,-506.17797417,0.00027397,5]
[341027615,1730283043231,-500.0,0.00027397,5]
[341027616,1730283043241,-151.0,0.00027397,7]
[341027617,1730283043250,-502.22989382,0.00027397,5]
[341027618,1730283043261,-500.0,0.00027397,5]
[341027619,1730283043271,-500.0,0.00027397,5]
[341027621,1730283043281,-500.0,0.00027397,5]
[341027623,1730283043290,-512.75679098,0.00027397,5]
[341027625,1730283043300,-503.62061551,0.00027397,5]
[341027627,1730283043310,-505.84222826,0.00027397,5]
[341027629,1730283043320,-500.0,0.00027397,5]
[341027630,1730283043330,-396.53385433,0.00027397,5]
[341027631,1730283043339,-508.82076321,0.00027397,5]
[341027632,1730283043349,-500.0,0.00027397,5]
[341027633,1730283043359,-506.94696782,0.00027397,5]
[341027634,1730283043368,-505.40638849,0.00027397,5]
[341027635,1730283043377,-506.86817911,0.00027397,5]
[341027636,1730283043387,-500.0,0.00027397,5]
[341027637,1730283043396,-500.0,0.00027397,5]
[341027638,1730283043407,-500.46672754,0.00027397,5]
[341027639,1730283043416,-500.0,0.00027397,5]
[341027640,1730283043426,-506.98635245,0.00027397,5]
[341027641,1730283043436,-500.0,0.00027397,5]
[341027642,1730283043447,-505.14883879,0.00027397,5]
[341027643,1730283043457,-500.0,0.00027397,5]
[341027644,1730283043467,-500.0,0.00027397,5]
[341027645,1730283043476,-500.0,0.00027397,5]
[341027646,1730283043487,-508.8151113,0.00027397,5]
[341027647,1730283043497,-503.68909768,0.00027397,5]
[341027648,1730283043506,-503.39696246,0.00027397,5]
[341027649,1730283043516,-500.0,0.00027397,5]
[341027650,1730283043526,-510.24757553,0.00027397,5]
[341027652,1730283043536,-500.0,0.00027397,5]
[341027653,1730283043547,-500.0,0.00027397,5]
[341027654,1730283043557,-500.0,0.00027397,5]
[341027655,1730283043567,-525.84882018,0.00027397,5]
[341027656,1730283043576,-500.0,0.00027397,5]
[341027658,1730283043585,-597.87762921,0.00027397,5]
[341027659,1730283043595,-512.22033393,0.00027397,5]
[341027660,1730283043605,-516.38729811,0.00027397,5]
[341027661,1730283043615,-500.0,0.00027397,5]
[341027662,1730283043624,-452.1992726,0.00027397,5]
[341027663,1730283043634,-500.0,0.00027397,5]
[341027664,1730283043643,-506.0866101,0.00027397,5]
[341027665,1730283043652,-500.0,0.00027397,5]
[341027666,1730283043662,-500.0,0.00027397,5]
[341027667,1730283043675,-500.0,0.00027397,5]
[341027668,1730283043686,-500.0,0.00027397,5]
[341027669,1730283043696,-500.0,0.00027397,5]
[341027670,1730283043709,-511.44616111,0.00027397,5]
[341027671,1730283043719,-510.77036249,0.00027397,5]
[341027672,1730283043731,-500.0,0.00027397,5]
[341027673,1730283043743,-500.0,0.00027397,5]
[341027674,1730283043753,-500.0,0.00027397,5]
[341027675,1730283043764,-500.0,0.00027397,5]
[341027676,1730283043773,-500.0,0.00027397,5]
[341027677,1730283043783,-823.0,0.00027496,2]
[341027678,1730283043793,-151.0,0.0002767,7]
[341027679,1730283043802,-6027.41,0.0002767,2]
[341027680,1730283043812,-6027.41,0.0002767,2]
[341027681,1730283043821,-1465.56,0.0002767,2]
[341027682,1730283043831,-1465.56,0.0002767,2]
[341027683,1730283043840,-502.81550035,0.00027671,5]
[341027684,1730283043851,-500.0,0.00027671,5]
[341027685,1730283043862,-500.0,0.00027671,5]
[341027686,1730283043872,-501.24364655,0.00027671,5]
[341027687,1730283043884,-500.0,0.00027671,5]
[341027688,1730283043895,-394.02215402,0.00027671,5]
[341027689,1730283043905,-482.6053575,0.00027671,5]
[341027690,1730283043915,-501.79795535,0.00027671,5]
[341027691,1730283043925,-501.90866618,0.00027671,5]
[341027692,1730283043935,-586.80082494,0.00027671,5]
[341027693,1730283043945,-509.14650206,0.00027671,5]
[341027694,1730283043955,-503.49343307,0.00027671,5]
[341027695,1730283043964,-500.0,0.00027671,5]
[341027696,1730283043974,-500.0,0.00027671,5]
[341027697,1730283043983,-510.2438676,0.00027671,5]
[341027698,1730283043993,-502.57821754,0.00027671,5]
[341027699,1730283044003,-338.21369346,0.00027671,5]
[341027700,1730283044013,-502.95297362,0.00027671,5]
[341027701,1730283044023,-500.0,0.00027671,5]
[341027702,1730283044033,-183.86656708,0.00027671,5]
[341027703,1730283044043,-500.0,0.00027671,5]
[341027704,1730283044054,-503.24803732,0.00027671,5]
[341027705,1730283044063,-500.0,0.00027671,5]
[341027706,1730283044073,-505.29581949,0.00027671,5]
[341027707,1730283044082,-502.0422249,0.00027671,5]
[341027708,1730283044092,-500.0,0.00027671,5]
[341027709,1730283044101,-513.09010111,0.00027671,5]
[341027710,1730283044110,-504.01734885,0.00027671,5]
[341027711,1730283044120,-505.52886139,0.00027671,5]
[341027712,1730283044130,-500.0,0.00027671,5]
[341027713,1730283044140,-500.0,0.00027671,5]
[341027714,1730283044149,-321.56490249,0.00027671,5]
[341027715,1730283044159,-500.0,0.00027671,5]
[341027716,1730283044168,-505.97643654,0.00027671,5]
[341027717,1730283044178,-500.0,0.00027671,5]
[341027718,1730283044187,-511.71354639,0.00027671,5]
[341027719,1730283044196,-540.83122671,0.00027671,5]
[341027720,1730283044206,-505.96252811,0.00027671,5]
[341027721,1730283044216,-500.43004858,0.00027671,5]
[341027722,1730283044227,-500.0,0.00027671,5]
[341027723,1730283044237,-493.59587914,0.00027671,5]
[341027724,1730283044247,-503.67099805,0.00027671,5]
[341027725,1730283044259,-503.80071652,0.00027671,5]
[341027726,1730283044269,-229.71,0.00027671,5]
[341027727,1730283044278,-212.91,0.00027671,5]
[341027728,1730283044287,-500.0,0.00027671,5]
[341027729,1730283044297,-509.12610106,0.00027671,5]
[341027730,1730283044307,-563.76,0.00027671,5]
[341027731,1730283044319,-500.0,0.00027671,5]
[341027732,1730283044329,-528.04877927,0.00027671,5]
[341027733,1730283044339,-500.0,0.00027671,5]
[341027734,1730283044348,-500.0,0.00027671,5]
[341027735,1730283044358,-619.72232805,0.00027671,5]
[341027736,1730283044367,-500.0,0.00027671,5]
[341027737,1730283044377,-503.54916501,0.00027671,5]
[341027738,1730283044387,-500.0,0.00027671,5]
[341027739,1730283044396,-500.0,0.00027671,5]
[341027740,1730283044406,-500.0,0.00027671,5]
[341027741,1730283044415,-507.71998242,0.00027671,5]
[341027742,1730283044424,-741.42,0.00027671,3]
[341027743,1730283044434,-500.0,0.00027671,5]
[341027744,1730283044446,-500.0,0.00027671,5]
[341027745,1730283044456,-500.0,0.00027671,5]
[341027746,1730283044466,-500.0,0.00027671,5]
[341027747,1730283044475,-500.0,0.00027671,5]
[341027748,1730283044485,-507.82694005,0.00027671,5]
[341027749,1730283044495,-506.29956401,0.00027671,5]
[341027750,1730283044504,-397.45181552,0.00027671,5]
[341027751,1730283044515,-500.0,0.00027671,5]
[341027752,1730283044525,-502.57902808,0.00027671,5]
[341027753,1730283044536,-501.33795304,0.00027671,5]
[341027754,1730283044545,-504.75905782,0.00027671,5]
[341027755,1730283044555,-507.89716125,0.00027671,5]
[341027756,1730283044565,-508.01088676,0.00027671,5]
[341027757,1730283044574,-513.78810971,0.00027671,5]
[341027758,1730283044584,-282.0,0.00027671,5]
[341027759,1730283044594,-507.88652029,0.00027671,5]
[341027760,1730283044604,-500.0,0.00027671,5]
[341027761,1730283044613,-500.0,0.00027671,5]
[341027762,1730283044624,-502.32035337,0.00027671,5]
[341027763,1730283044634,-172.46997076,0.00027671,5]
[341027764,1730283044645,-506.84423603,0.00027671,5]
[341027765,1730283044655,-490.0,0.00027671,5]
[341027766,1730283044666,-1465.56,0.00027943,2]
[341027767,1730283044676,-6027.41,0.00027944,2]
[341027768,1730283044687,-500.0,0.00027945,5]
[341027769,1730283044696,-500.0,0.00027945,5]
[341027770,1730283044706,-502.93632742,0.00027945,5]
[341027771,1730283044715,-505.73483434,0.00027945,5]
[341027772,1730283044724,-500.0,0.00027945,5]
[341027773,1730283044733,-531.52152203,0.00027945,5]
[341027774,1730283044745,-514.92983022,0.00027945,5]
[341027775,1730283044757,-515.11299824,0.00027945,5]
[341027776,1730283044767,-500.0,0.00027945,5]
[341027777,1730283044777,-356.04477107,0.00027945,5]
[341027778,1730283044787,-508.66673556,0.00027945,5]
[341027779,1730283044797,-511.24583504,0.00027945,5]
[341027780,1730283044807,-502.99456874,0.00027945,5]
[341027781,1730283044818,-500.0,0.00027945,5]
[341027782,1730283044828,-500.0,0.00027945,5]
[341027783,1730283044838,-257.87107349,0.00027945,5]
[341027784,1730283044849,-253.64,0.00027945,5]
[341027785,1730283044858,-500.0,0.00027945,5]
[341027786,1730283044868,-151.1308319,0.00027945,5]
[341027787,1730283044878,-500.0,0.00027945,5]
[341027788,1730283044887,-329.06527861,0.00027945,5]
[341027789,1730283044898,-741.42,0.00027945,3]
[341027790,1730283044908,-194.99168123,0.00027945,5]
[341027791,1730283045012,-360.96571726,0.00027945,5]
[341027792,1730283045023,-586.21229746,0.00027945,5]
[341027793,1730283045034,-611.91341573,0.00027945,5]
[341027794,1730283045044,-507.56524668,0.00027945,5]
[341027795,1730283045054,-500.0,0.00027945,5]
[341027796,1730283045064,-370.90371422,0.00027945,5]
[341027797,1730283045074,-500.0,0.00028016,5]
[341027798,1730283045084,-169.437,0.00028071,18]
[341027799,1730283045094,-632.11867068,0.00028138,2]
[341027800,1730283045104,-507.40151916,0.00028219,5]
[341027801,1730283045114,-508.75666676,0.00028219,5]
[341027802,1730283045125,-227.48039791,0.00028219,5]
[341027803,1730283045136,-500.0,0.00028219,5]
[341027804,1730283045146,-281.24,0.00028219,5]
[341027805,1730283045156,-325.50132498,0.00028219,5]
[341027806,1730283045166,-500.0,0.00028219,5]
[341027807,1730283045177,-741.42,0.00028219,3]
[341027808,1730283045187,-500.0,0.00028219,5]
[341027809,1730283045197,-729.45680107,0.00028262,2]
[341027810,1730283045208,-159.272592,0.00028445,2]
[341027811,1730283045219,-823.0,0.00028467,2]
[341027812,1730283045228,-1465.56,0.00028492,2]
[341027813,1730283045238,-500.0,0.00028493,5]
[341027814,1730283045248,-415.05,0.00028493,5]
[341027815,1730283045258,-741.42,0.00028493,3]
[341027816,1730283045268,-316.86045694,0.00028493,5]
[341027817,1730283045334,-510.29153708,0.00027671,5]
[341027818,1730283045344,-183.13954306,0.00028493,5]
[341027819,1730283045355,-236.55884047,0.00028732,2]
[341027835,1730283049894,157.843848,0.00013973,2]
[341027836,1730283052133,150.3945,0.0001994,2]
[341027848,1730283565749,173.347646,0.00013973,2]
[341027917,1730284084457,160.377255,0.00013973,2]
[341027971,1730284232642,-618.65,0.0002061,2]
[341028435,1730284238739,-2300.01385516,0.0002061,2]
[341028436,1730284238749,-160.377255,0.00021209,2]
[341028437,1730284238758,-165.475151,0.00021518,2]
[341028438,1730284238767,-183.5409781,0.00021637,2]
[341028439,1730284238777,-48.68109924,0.00021729,2]
[341028440,1730284238789,-442.55078176,0.00021729,2]
[341028441,1730284238799,-166.666666,0.00021918,2]
[341028442,1730284238808,-407.86402669,0.00021978,2]
[341028443,1730284238818,-166.666666,0.00022431,2]
[341028444,1730284238828,-500.0,0.000228,2]
[341028445,1730284238837,-166.666666,0.00022944,2]
[341028446,1730284238846,-166.666666,0.00023456,2]
[341028447,1730284238856,-300.0,0.00023748,2]
[341028448,1730284238867,-300.0,0.00023748,2]
[341028449,1730284238876,-5000.0,0.00023749,2]
[341028450,1730284238886,-24900.0,0.00023749,2]
[341028451,1730284238895,-166.666666,0.00023969,2]
[341028452,1730284238905,-166.666666,0.00024482,2]
[341028453,1730284238914,-500.0,0.00024999,2]
[341028454,1730284238924,-500.0,0.00024999,2]
[341028455,1730284238943,-500.0,0.00024999,2]
[341028456,1730284238954,-319.75104897,0.00024999,2]
[341028457,1730284238964,-263.07157657,0.00024999,2]
[341028458,1730284238975,-500.08712239,0.00024999,2]
[341028459,1730284238984,-500.0,0.00024999,2]
[341028460,1730284238993,-200.0,0.00025,120]
[341028461,1730284239003,-4697.58625674,0.00025,2]
[341028462,1730284239012,-214.61753261,0.00025,2]
[341028463,1730284239022,-420.0,0.0002576,2]
[341028464,1730284239033,-300.0,0.00026,120]
[341028465,1730284239045,-420.0,0.00026123,2]
[341028466,1730284239056,-200.0,0.00027,120]
[341028467,1730284239066,-5000.0,0.00027069,2]
[341028468,1730284239075,-5000.0,0.00027396,2]
[341028469,1730284239084,-400.27374578,0.00027396,2]
[341028470,1730284239094,-500.0,0.00027396,2]
[341028471,1730284239104,-500.0,0.00027396,2]
[341028472,1730284239114,-500.0,0.00027396,2]
[341028473,1730284239123,-431.94690786,0.00027396,2]
[341028474,1730284239133,-500.0,0.00027396,2]
[341028475,1730284239142,-500.0,0.00027396,2]
[341028477,1730284239152,-500.0,0.00027396,2]
[341028479,1730284239162,-557.07036365,0.00027397,5]
[341028480,1730284239172,-166.7048841,0.00027397,5]
[341028482,1730284239183,-500.0,0.00027397,5]
[341028484,1730284239193,-563.76,0.00027397,5]
[341028486,1730284239204,-500.0,0.00027397,5]
[341028489,1730284239213,-507.71998242,0.00027397,5]
[341028491,1730284239223,-500.0,0.00027397,5]
[341028492,1730284239236,-509.12610106,0.00027397,5]
[341028495,1730284239247,-500.0,0.00027397,5]
[341028497,1730284239259,-610.65,0.00027397,2]
[341028499,1730284239268,-610.65,0.00027397,2]
[341028501,1730284239278,-610.65,0.00027397,2]
[341028502,1730284239288,-610.65,0.00027397,2]
[341028504,1730284239298,-610.65,0.00027397,2]
[341028506,1730284239309,-528.04877927,0.00027397,5]
[341028508,1730284239319,-500.0,0.00027397,5]
[341028510,1730284239329,-500.0,0.00027397,5]
[341028512,1730284239341,-500.0,0.00027397,5]
[341028514,1730284239351,-500.0,0.00027397,5]
[341028516,1730284239361,-507.82694005,0.00027397,5]
[341028518,1730284239370,-619.72232805,0.00027397,5]
[341028520,1730284239379,-500.0,0.00027397,5]
[341028522,1730284239389,-506.29956401,0.00027397,5]
[341028524,1730284239399,-508.01088676,0.00027397,5]
[341028526,1730284239408,-502.57902808,0.00027397,5]
[341028528,1730284239418,-513.78810971,0.00027397,5]
[341028530,1730284239427,-503.54916501,0.00027397,5]
[341028532,1730284239436,-397.45181552,0.00027397,5]
[341028534,1730284239446,-500.0,0.00027397,5]
[341028536,1730284239456,-507.88652029,0.00027397,5]
[341028538,1730284239469,-507.89716125,0.00027397,5]
[341028540,1730284239478,-282.0,0.00027397,5]
[341028543,1730284239488,-501.33795304,0.00027397,5]
[341028545,1730284239497,-502.32035337,0.00027397,5]
[341028547,1730284239507,-500.0,0.00027397,5]
[341028549,1730284239516,-504.75905782,0.00027397,5]
[341028551,1730284239527,-500.0,0.00027397,5]
[341028553,1730284239537,-500.0,0.00027397,5]
[341028555,1730284239550,-506.84423603,0.00027397,5]
[341028557,1730284239560,-502.93632742,0.00027397,5]
[341028559,1730284239569,-172.46997076,0.00027397,5]
[341028561,1730284239579,-490.0,0.00027397,5]
[341028563,1730284239590,-505.73483434,0.00027397,5]
[341028565,1730284239599,-500.0,0.00027397,5]
[341028567,1730284239609,-515.11299824,0.00027397,5]
[341028569,1730284239619,-504.01734885,0.00027397,5]
[341028571,1730284239631,-500.0,0.00027397,5]
[341028574,1730284239641,-500.0,0.00027397,5]
[341028576,1730284239652,-531.52152203,0.00027397,5]
[341028578,1730284239661,-500.0,0.00027397,5]
[341028580,1730284239671,-514.92983022,0.00027397,5]
[341028582,1730284239681,-513.09010111,0.00027397,5]
[341028584,1730284239690,-505.52886139,0.00027397,5]
[341028586,1730284239699,-500.0,0.00027397,5]
[341028588,1730284239709,-321.56490249,0.00027397,5]
[341028590,1730284239719,-500.0,0.00027397,5]
[341028592,1730284239728,-505.97643654,0.00027397,5]
[341028594,1730284239738,-500.0,0.00027397,5]
[341028596,1730284239748,-505.96252811,0.00027397,5]
[341028598,1730284239758,-500.43004858,0.00027397,5]
[341028600,1730284239768,-511.71354639,0.00027397,5]
[341028602,1730284239777,-500.0,0.00027397,5]
[341028604,1730284239790,-540.83122671,0.00027397,5]
[341028606,1730284239800,-493.59587914,0.00027397,5]
[341028608,1730284239811,-503.67099805,0.00027397,5]
[341028610,1730284239821,-503.80071652,0.00027397,5]
[341028613,1730284239831,-500.0,0.00027397,5]
[341028615,1730284239843,-500.0,0.00027397,5]
[341028617,1730284239852,-500.0,0.00027397,5]
[341028619,1730284239862,-212.91,0.00027397,5]
[341028621,1730284239873,-229.71,0.00027397,5]
[341028623,1730284239883,-500.0,0.00027397,5]
[341028625,1730284239895,-710.53,0.00027397,3]
[341028627,1730284239906,-252.72,0.0002765,3]
[341028629,1730284239916,-758.17,0.0002765,3]
[341028631,1730284239926,-1798.83,0.0002766,10]
[341028634,1730284239938,-2472.23,0.0002766,10]
[341028636,1730284239950,-2060.2,0.0002766,10]
[341028638,1730284239961,-1716.83,0.0002766,10]
[341028640,1730284239971,-500.0,0.00027671,5]
[341028642,1730284239980,-500.0,0.00027671,5]
[341028645,1730284239990,-194.99168123,0.00027671,5]
[341028647,1730284240002,-257.87107349,0.00027671,5]
[341028649,1730284240012,-586.21229746,0.00027671,5]
[341028651,1730284240021,-611.91341573,0.00027671,5]
[341028652,1730284240030,-507.56524668,0.00027671,5]
[341028653,1730284240041,-253.64,0.00027671,5]
[341028654,1730284240053,-500.0,0.00027671,5]
[341028655,1730284240063,-151.1308319,0.00027671,5]
[341028656,1730284240072,-370.90371422,0.00027671,5]
[341028657,1730284240081,-507.40151916,0.00027671,5]
[341028663,1730284240231,-508.75666676,0.00027671,5]
[341028664,1730284240245,-329.06527861,0.00027671,5]
[341028665,1730284240255,-500.0,0.00027671,5]
[341028666,1730284240265,-360.96571726,0.00027671,5]
[341028667,1730284240274,-356.04477107,0.00027671,5]
[341028668,1730284240283,-508.66673556,0.00027671,5]
[341028669,1730284240293,-511.24583504,0.00027671,5]
[341028670,1730284240301,-502.99456874,0.00027671,5]
[341028671,1730284240313,-500.0,0.00027671,5]
[341028672,1730284240323,-500.0,0.00027671,5]
[341028673,1730284240332,-500.0,0.00027671,5]
[341028674,1730284240341,-710.53,0.00027671,3]
[341028675,1730284240350,-505.69493656,0.00027728,2]
[341028676,1730284240360,-587.0,0.00027943,2]
[341028677,1730284240369,-500.0,0.00027945,5]
[341028678,1730284240378,-281.24,0.00027945,5]
[341028679,1730284240386,-325.50132498,0.00027945,5]
[341028680,1730284240396,-227.48039791,0.00027945,5]
[341028681,1730284240405,-500.0,0.00027945,5]
[341028682,1730284240415,-500.0,0.00027945,5]
[341028683,1730284240424,-500.0,0.00027945,5]
[341028684,1730284240434,-710.53,0.00027945,3]
[341028685,1730284240443,-500.0,0.00028,120]
[341028686,1730284240453,-300.0,0.00028,2]
[341028687,1730284240462,-157.0,0.00028,2]
[341028688,1730284240471,-169.436,0.00028076,18]
[341028689,1730284240480,-3582.68359562,0.00028218,2]
[341028690,1730284240499,-438.51725647,0.00028218,2]
[341028693,1730284240743,-481.070003,0.0002765,10]
[341028734,1730284860282,162.824866,0.00013973,2]
[341029121,1730285438189,-162.824866,0.00021209,2]
[341029122,1730285438200,-24900.0,0.00023771,2]
[341029123,1730285438214,-245.615941,0.00023967,2]
[341029124,1730285438226,-173.040661,0.00024032,2]
[341029125,1730285438237,-169.238879,0.00024335,2]
[341029126,1730285438248,-300.0,0.00025162,2]
[341029127,1730285438260,-5000.0,0.00025163,2]
[341029128,1730285438270,-300.0,0.00025163,2]
[341029129,1730285438286,-157.0,0.00027,2]
[341029130,1730285438297,-420.0,0.00027254,2]
[341029131,1730285438309,-173.040661,0.00027308,2]
[341029132,1730285438320,-5000.0,0.00027396,2]
[341029133,1730285438484,-214.61753262,0.00027397,2]
[341029134,1730285438496,-500.0,0.00027397,2]
[341029135,1730285438507,-500.0,0.00027397,2]
[341029136,1730285438517,-292.83311153,0.00027397,2]
[341029137,1730285438529,-207.16688847,0.00027397,2]
[341029138,1730285438538,-500.0,0.00027397,2]
[341029139,1730285438547,-575.676446,0.00027397,5]
[341029140,1730285438557,-638.56989034,0.00027397,5]
[341029141,1730285438566,-500.0,0.00027397,5]
[341029142,1730285438576,-500.0,0.00027397,5]
[341029143,1730285438586,-621.72,0.00027397,3]
[341029144,1730285438596,-415.05,0.00027397,5]
[341029145,1730285438605,-302.8704018,0.00027397,2]
[341029146,1730285438615,-302.8704018,0.00027397,2]
[341029147,1730285438624,-346.6054532,0.00027397,2]
[341029148,1730285438634,-500.0,0.00027671,5]
[341029149,1730285438643,-303.22505592,0.00027671,5]
[341029150,1730285438655,-196.77494408,0.00027671,5]
[341029151,1730285438664,-229.08400955,0.00027671,3]
[341029152,1730285438675,-392.63599045,0.00027671,3]
[341029153,1730285438685,-420.0,0.00027679,2]
[341029154,1730285438694,-500.0,0.00027945,5]
[341029155,1730285438703,-500.0,0.00027945,5]
[341029156,1730285438712,-621.72,0.00027945,3]
[341029157,1730285438721,-169.437,0.00028066,18]
[341029158,1730285438733,-500.0,0.00028207,2]
[341029159,1730285438742,-500.0,0.00028218,2]
[341029160,1730285438751,-500.0,0.00028219,5]
[341029161,1730285438760,-500.0,0.00028219,5]
[341029162,1730285438770,-621.72,0.00028219,3]
[341029163,1730285438779,-162.824866,0.00028445,2]
[341029164,1730285438788,-500.0,0.00028493,5]
[341029165,1730285438797,-500.0,0.00028493,5]
[341029166,1730285438806,-621.72,0.00028493,3]
[341029167,1730285438816,-500.0,0.00028506,5]
[341029168,1730285438826,-500.0,0.00028506,5]
[341029169,1730285438835,-500.7448973,0.00028506,5]
[341029170,1730285438847,-152.02978824,0.00028506,2]
[341029171,1730285438857,-463.92855086,0.00028506,2]
[341029172,1730285438866,-410.42600659,0.00028506,5]
[341029173,1730285438876,-500.0,0.0002872,5]
[341029174,1730285438886,-500.0,0.0002872,5]
[341029175,1730285438895,-260.10743679,0.0002872,5]
[341029176,1730285438904,-500.0,0.0002872,5]
[341029177,1730285438914,-5000.0,0.0002873,2]
[341029178,1730285438923,-237.97452619,0.00028731,2]
[341029179,1730285438932,-5003.56451674,0.00028731,2]
[341029180,1730285438942,-500.0,0.00028744,5]
[341029181,1730285438951,-500.0,0.00028744,5]
[341029182,1730285438962,-500.0,0.00028744,2]
[341029183,1730285438971,-500.0,0.00028767,5]
[341029184,1730285438980,-500.0,0.00028767,5]
[341029185,1730285438989,-621.72,0.00028767,3]
[341029186,1730285438998,-500.0,0.00028908,5]
[341029187,1730285439008,-501.56504727,0.00028908,5]
[341029188,1730285439017,-160.08903638,0.00028908,5]
[341029189,1730285439026,-507.33084647,0.00028908,5]
[341029190,1730285439036,-500.0,0.00028908,2]
[341029191,1730285439045,-500.0,0.00029041,5]
[341029192,1730285439055,-500.0,0.00029041,5]
[341029193,1730285439064,-621.72,0.00029041,3]
[341029194,1730285439073,-500.0,0.00029315,5]
[341029195,1730285439082,-316.86045694,0.00029315,5]
[341029196,1730285439091,-621.72,0.00029315,3]
[341029197,1730285439102,-587.0,0.00029521,2]
[341029198,1730285439117,-500.0,0.00029589,5]
[341029199,1730285439132,-621.72,0.00029589,3]
[341029200,1730285439141,-500.0,0.00029862,2]
[341029201,1730285439151,-500.0,0.00029863,5]
[341029202,1730285439161,-621.72,0.00029863,3]
[341029203,1730285439171,-151.0,0.0003,120]
[341029204,1730285439181,-500.0,0.0003,120]
[341029205,1730285439190,-239.42360065,0.0003,120]
[341029206,1730285439199,-158.73,0.0003,2]
[341029207,1730285439209,-1211.6365575,0.0003,3]
[341029208,1730285439219,-161.0,0.0003,2]
[341029209,1730285439228,-500.0,0.00030136,5]
[341029210,1730285439238,-621.72,0.00030136,3]
[341029211,1730285439248,-500.0,0.00030408,2]
[341029212,1730285439257,-280.19162205,0.00030408,2]
[341029213,1730285439266,-500.0,0.00030408,2]
[341029214,1730285439276,-500.0,0.00030408,2]
[341029215,1730285439285,-500.0,0.00030408,2]
[341029216,1730285439295,-500.0,0.00030408,2]
[341029217,1730285439304,-272.24678697,0.00030408,2]
[341029228,1730285439929,-130.11604853,0.00030408,2]
[341029229,1730285439938,-500.0,0.00030408,2]
[341029230,1730285439948,-500.0,0.00030408,2]
[341029231,1730285439960,-41.04735109,0.00030408,2]
[341029276,1730285443458,-178.48089464,0.00028731,2]
[341029277,1730285443468,-5003.56451674,0.00028731,2]
[341029278,1730285443478,-458.95264891,0.00030408,2]
[341029279,1730285443487,-500.0,0.00030408,2]
[341029280,1730285443497,-500.0,0.00030408,2]
[341029281,1730285443506,-500.0,0.00030408,2]
[341029282,1730285443515,-281.65398485,0.00030408,2]
[341029283,1730285443524,-5000.0,0.00030409,2]
[341029284,1730285443533,-500.0,0.0003041,5]
[341029285,1730285443542,-621.72,0.0003041,3]
[341029286,1730285443552,-161.0,0.00030411,2]
[341029287,1730285443561,-373.0,0.00030447,2]
[341029288,1730285443572,-500.0,0.00030684,5]
[341029289,1730285443581,-621.72,0.00030684,3]
[341029290,1730285443590,-863.6,0.00030948,3]
[341029291,1730285443604,-500.0,0.00030958,5]
[341029292,1730285443617,-621.72,0.00030958,3]
[341029293,1730285443626,-500.0,0.00031,120]
[341029294,1730285443636,-151.0,0.00031123,120]
[341029295,1730285443645,-500.0,0.00031232,5]
[341029296,1730285443654,-377.7741418,0.00031232,3]
[341029301,1730285446083,-243.9458582,0.00031232,3]
[341029302,1730285446093,-500.0,0.00031506,5]
[341029303,1730285446105,-621.72,0.00031506,3]
[341029304,1730285446115,-161.0,0.00031644,2]
[341029305,1730285446126,-523.09506284,0.00031769,2]
[341029306,1730285446364,2733.7336231,0.00020113,2]
[341029307,1730285454212,1391.80693656,0.00020113,2]
[341029309,1730285583010,165.68242,0.00013973,2]
[341029311,1730286115613,323.31826819,0.00020113,2]
[341029312,1730286219180,167.202722,0.00013973,2]
[341029343,1730286632058,-199.8395,0.00020156,2]